bitfinex/quotes_ETHUSD_20251126
["timestamp","ask_amount","ask_price","bid_price","bid_amount"]
[1764165408622,0.78611055,2932.5,2932.4,7.22237596]
[1764165408952,1.27881055,2932.5,2932.4,3.8122]
[1764165409147,1.27881055,2932.5,2932.4,7.22237596]
[1764165409658,0.78611055,2932.5,2932.4,3.8122]
[1764165410026,0.78611055,2932.5,2932.4,7.22237596]
[1764165410335,0.32091055,2932.5,2932.4,7.22237596]
[1764165410542,0.32091055,2932.5,2932.4,7.64617596]
[1764165411124,0.32091055,2932.5,2932.4,7.22237596]
[1764165411425,0.78611055,2932.5,2932.4,7.22237596]
[1764165411758,7.56827603,2932.5,2932.4,3.8122]
[1764165411933,9.05089774,2932.5,2932.2,3.8122]
[1764165412137,6.28946548,2932.3,2932.2,3.8122]
[1764165412334,7.07437603,2932.3,2932.2,3.8122]
[1764165412534,7.56707603,2932.3,2932.2,3.8122]
[1764165413226,8.29267014,2932.3,2932.2,3.8122]
[1764165414019,2.00320466,2932.3,2932.2,3.8122]
[1764165414426,8.29267014,2932.3,2932.2,3.8122]
[1764165415070,9.12205715,2932.3,2932.2,3.8122]
[1764165415786,2.83259167,2932.3,2932.2,3.8122]
[1764165416085,2.00320466,2932.3,2932.2,3.8122]
[1764165416888,2.00320466,2932.3,2932.1,3.8122]
[1764165417194,0.31971055,2932.2,2932.1,3.41052487]
[1764165417767,0.78491055,2932.2,2932.0,0.001]
[1764165417987,0.72951055,2932.1,2932.0,0.001]
[1764165418196,1.22221055,2932.1,2932.0,0.001]
[1764165418492,7.51167603,2932.1,2932.0,0.001]
[1764165418657,8.33540304,2932.1,2932.0,0.001]
[1764165419260,1.22221055,2932.1,2932.0,0.001]
[1764165420688,0.31971055,2932.1,2932.0,0.001]
[1764165421270,0.78491055,2932.1,2932.0,0.001]
[1764165421672,1.27761055,2932.1,2932.0,0.001]
[1764165422896,0.31971055,2932.1,2932.0,3.821]
[1764165423105,0.31971055,2932.1,2932.0,4.627]
[1764165423310,0.31971055,2932.1,2932.0,5.0508]
[1764165423507,0.31971055,2932.1,2932.0,4.627]
[1764165424280,0.31971055,2932.1,2932.0,4.2448]
[1764165424483,0.31891055,2932.1,2932.0,7.6554412]
[1764165425062,0.31891055,2932.1,2932.0,8.0792412]
[1764165425418,0.0012,2932.5,2932.0,11.4898824]
[1764165425577,0.4985,2932.5,2932.0,11.0660824]
[1764165425903,0.4985,2932.5,2932.1,1.10660824]
[1764165426105,0.4985,2932.5,2932.2,3.41040856]
[1764165426308,0.0012,2932.5,2932.4,0.4238]
[1764165426477,0.0012,2932.5,2932.2,6.82081712]
[1764165426685,0.4985,2932.5,2932.2,3.41040856]
[1764165426887,0.4867,2932.3,2932.2,3.41040856]
[1764165427910,0.4867,2932.3,2932.1,1.10660824]
[1764165428695,0.4867,2932.3,2932.2,3.41040856]
[1764165428897,0.4985,2932.5,2932.2,7.23040856]
[1764165429118,0.0012,2932.5,2932.2,7.23040856]
[1764165429297,0.0012,2932.5,2932.2,10.64081712]
[1764165429504,0.0012,2932.5,2932.2,7.23040856]
[1764165429799,0.4985,2932.5,2932.2,7.23040856]
[1764165429981,0.4867,2932.3,2932.2,7.23040856]
[1764165430425,0.0012,2932.5,2932.2,12.12881025]
[1764165430602,0.4985,2932.5,2932.2,7.65420856]
[1764165430904,0.4867,2932.3,2932.2,7.23040856]
[1764165432707,0.984,2932.3,2932.2,3.82]
[1764165432907,0.72559411,2932.1,2932.0,0.001]
[1764165433081,7.50028881,2932.1,2932.0,0.001]
[1764165433408,9.47940614,2932.1,2932.0,0.001]
[1764165434612,12.88993101,2932.1,2932.0,0.001]
[1764165435729,13.29543501,2932.1,2932.0,0.001]
[1764165435907,0.405504,2932.0,2931.8,0.001]
[1764165436109,23.73554611,2931.9,2931.8,0.001]
[1764165436314,27.0852371,2931.9,2931.8,0.001]
[1764165436518,27.8661226,2931.9,2931.8,0.001]
[1764165436831,31.27688012,2931.9,2931.8,0.001]
[1764165438220,31.27688012,2931.9,2931.7,0.001]
[1764165438221,13.25238411,2931.8,2931.7,0.001]
[1764165438435,14.83751731,2931.8,2931.7,0.001]
[1764165438740,17.3348351,2931.8,2931.7,0.001]
[1764165438908,20.74570896,2931.8,2931.7,0.001]
[1764165439103,42.11982696,2931.8,2931.7,0.001]
[1764165439342,37.52375696,2931.8,2931.7,0.001]
[1764165440229,44.58685296,2931.8,2931.7,0.001]
[1764165440538,23.66035196,2931.8,2931.7,0.001]
[1764165440720,23.75975196,2931.8,2931.7,0.001]
[1764165441340,29.98688296,2931.8,2931.7,0.001]
[1764165442207,27.66781196,2931.8,2931.7,0.001]
[1764165442404,10.7273921,2931.8,2931.7,0.001]
[1764165442636,11.64094817,2931.8,2931.7,0.001]
[1764165442841,8.23007431,2931.8,2931.7,0.001]
[1764165443040,11.64094817,2931.8,2931.7,0.001]
[1764165443249,8.23007431,2931.8,2931.7,0.001]
[1764165443451,11.64094817,2931.8,2931.7,0.001]
[1764165443656,13.17555885,2931.8,2931.7,0.001]
[1764165443947,13.27495885,2931.8,2931.7,0.001]
[1764165444159,9.30308499,2931.8,2931.7,0.001]
[1764165444448,2.28619618,2931.8,2931.7,0.001]
[1764165444657,0.3192855,2931.8,2931.7,0.4248]
[1764165445241,6.2932947,2932.6,2931.7,7.67058042]
[1764165445242,0.72679411,2932.5,2931.7,7.67058042]
[1764165445433,0.31852982,2932.4,2931.7,4.25959021]
[1764165445610,1.18839411,2932.5,2931.7,4.25959021]
[1764165445611,0.002,2931.8,2931.7,3.83579021]
[1764165445837,0.002,2931.8,2931.7,4.21956923]
[1764165446217,0.002,2931.8,2931.7,4.64336923]
[1764165446625,0.002,2931.8,2931.7,4.21956923]
[1764165447024,0.002,2931.8,2931.7,4.64336923]
[1764165449451,0.0012,2931.8,2931.7,4.64336923]
[1764165449941,0.0012,2931.8,2931.7,8.46336923]
[1764165454475,0.0012,2931.8,2931.7,8.03956923]
[1764165454780,0.0012,2931.8,2931.7,4.62857902]
[1764165455277,0.0012,2931.8,2931.7,4.20477902]
[1764165455580,0.002,2932.1,2931.8,3.8188]
[1764165455877,0.78012404,2932.0,2931.8,3.8188]
[1764165456090,0.4616,2932.0,2931.9,3.8188]
[1764165456261,2.35580306,2932.0,2931.9,3.8188]
[1764165456466,2.45520306,2932.0,2931.9,3.8188]
[1764165456850,1.72960895,2932.0,2931.9,3.8188]
[1764165457251,2.45520306,2932.0,2931.9,3.8188]
[1764165457463,1.63020895,2932.0,2931.9,3.8188]
[1764165458379,1.24279546,2932.0,2931.9,3.8188]
[1764165459752,0.78119546,2932.0,2931.9,3.8188]
[1764165459975,1.24279546,2932.0,2931.9,3.8188]
[1764165460661,5.47843077,2932.0,2931.9,3.8188]
[1764165461265,0.0994,2931.9,2931.7,0.001]
[1764165461462,0.94599546,2931.8,2931.7,0.001]
[1764165461989,5.64346343,2931.8,2931.7,0.001]
[1764165462660,1.50699546,2931.8,2931.7,0.001]
[1764165463464,2.23258957,2931.8,2931.7,0.001]
[1764165464087,1.50699546,2931.8,2931.7,0.001]
[1764165464294,2.07132313,2931.8,2931.7,0.001]
[1764165464492,2.79691724,2931.8,2931.7,0.001]
[1764165464996,2.07132313,2931.8,2931.7,0.001]
[1764165465172,0.75089546,2931.8,2931.7,0.001]
[1764165465578,1.23939546,2931.8,2931.7,0.001]
[1764165465784,0.75089546,2931.8,2931.7,0.001]
[1764165465986,0.31859546,2931.8,2931.7,0.4248]
[1764165467971,0.002,2932.3,2931.7,0.4248]
[1764165467972,4.24037621,2935.0,2933.6,30.0]
[1764165468282,7.94746136,2937.6,2936.7,0.09999999]
[1764165468606,0.1874,2937.9,2936.7,5.28192884]
[1764165468769,0.49496606,2937.7,2937.6,2.39705401]
[1764165469100,0.59436606,2937.7,2937.6,3.1166619]
[1764165469399,0.95766606,2937.7,2937.6,0.71969387]
[1764165469708,0.95766606,2937.7,2937.6,2.50674221]
[1764165470000,0.95766606,2937.7,2937.6,0.71969387]
[1764165470175,0.95766606,2937.7,2937.6,3.1166619]
[1764165470368,0.95766606,2937.7,2937.6,0.71969387]
[1764165470693,1.78266017,2937.7,2937.6,0.71969387]
[1764165470903,2.0522256,2937.7,2937.6,0.71969387]
[1764165471267,2.0522256,2937.7,2937.3,2.99648938]
[1764165471268,4.4611053,2937.7,2937.3,2.99648938]
[1764165471468,4.4611053,2937.7,2937.4,2.36801777]
[1764165471469,0.0994,2937.5,2937.4,2.36801777]
[1764165471679,0.0994,2937.4,2937.3,2.36801777]
[1764165472003,3.4105053,2937.7,2937.3,2.36801777]
[1764165472004,0.5879,2937.5,2937.3,2.36801777]
[1764165472200,0.4627,2937.4,2936.9,2.99648938]
[1764165472495,0.4627,2937.4,2935.9,6.84963201]
[1764165472496,0.0994,2937.3,2937.2,2.36462913]
[1764165472717,0.47177494,2937.3,2937.2,2.36462913]
[1764165472999,1.42297494,2937.3,2937.2,2.36462913]
[1764165473194,1.42297494,2937.3,2936.8,2.99648938]
[1764165473395,0.93447494,2937.3,2937.2,2.36132006]
[1764165473596,1.03387494,2937.3,2937.2,2.36132006]
[1764165473969,1.52157494,2937.3,2937.2,2.36132006]
[1764165474164,2.14776905,2937.3,2937.1,2.99648938]
[1764165474393,0.55522065,2937.2,2937.0,2.99648938]
[1764165474591,0.82499411,2937.4,2937.0,2.99648938]
[1764165474792,0.4616,2937.1,2937.0,2.99648938]
[1764165475073,0.4616,2937.1,2936.7,2.99648938]
[1764165475074,0.966504,2937.1,2936.7,2.99648938]
[1764165475291,0.1036,2936.8,2936.6,2.99648938]
[1764165475469,0.0864,2936.7,2936.6,2.35807328]
[1764165476399,0.0864,2936.7,2936.6,2.35645124]
[1764165476604,0.0864,2936.7,2936.5,2.35645124]
[1764165476605,0.72559411,2936.6,2936.5,2.35645124]
[1764165476907,1.37009411,2936.6,2936.4,2.35645124]
[1764165477102,0.0609,2936.6,2936.4,2.35645124]
[1764165477801,0.0048,2936.5,2936.4,2.35645124]
[1764165478101,0.41836497,2936.5,2936.4,2.35645124]
[1764165478313,1.14395908,2936.5,2936.1,2.99648938]
[1764165478516,0.4885,2936.6,2936.4,2.3545705]
[1764165478812,0.72559411,2936.5,2936.4,2.3545705]
[1764165479021,0.0561,2936.5,2936.4,2.3545705]
[1764165479302,0.0561,2936.5,2936.1,2.99648938]
[1764165479494,0.0561,2936.5,2936.2,2.35355681]
[1764165479695,0.72559411,2936.7,2936.2,2.35355681]
[1764165479873,1.14902064,2936.6,2936.2,2.35355681]
[1764165480074,0.4627,2936.3,2936.2,2.35355681]
[1764165480269,0.4627,2936.3,2936.1,2.35355681]
[1764165480476,0.4627,2936.3,2936.2,1.76485466]
[1764165481183,3.50866824,2936.8,2936.2,1.76485466]
[1764165481184,0.1036,2936.8,2936.2,2.21545466]
[1764165481381,0.1036,2936.8,2936.7,0.88216405]
[1764165481582,0.72559411,2936.7,2936.5,0.88216405]
[1764165481788,0.5921,2936.8,2936.5,0.88216405]
[1764165481993,0.5921,2936.8,2936.1,1.95995466]
[1764165481994,0.0561,2936.6,2936.4,1.17621874]
[1764165482193,0.0561,2936.6,2936.5,0.88223941]
[1764165482396,0.53398952,2936.6,2936.4,1.17621874]
[1764165482709,0.78169411,2936.6,2936.5,0.88205544]
[1764165483276,0.78169411,2936.6,2936.5,0.70545561]
[1764165483521,0.78169411,2936.6,2936.5,1.58740585]
[1764165484385,0.78169411,2936.6,2936.5,0.70545561]
[1764165485514,0.78169411,2936.6,2936.5,1.58754858]
[1764165485720,4.95655334,2936.6,2936.5,1.58754858]
[1764165486217,1.5512547,2936.6,2936.5,1.58754858]
[1764165486382,0.78169411,2936.6,2936.5,0.70545561]
[1764165487402,4.18699275,2936.6,2936.5,1.88167435]
[1764165487577,4.18699275,2936.6,2936.5,0.70545561]
[1764165487778,4.65979275,2936.6,2936.5,0.70545561]
[1764165488006,0.78169411,2936.6,2936.5,0.70545561]
[1764165488316,1.68354539,2936.6,2936.5,1.88167435]
[1764165488609,5.08884403,2936.6,2936.5,0.70545561]
[1764165488809,5.18824403,2936.6,2936.5,0.70545561]
[1764165489010,5.18824403,2936.6,2936.5,1.88167435]
[1764165489209,5.18824403,2936.6,2936.5,0.70545561]
[1764165489410,5.18824403,2936.6,2936.5,1.88167435]
[1764165489709,5.18824403,2936.6,2936.5,0.70545561]
[1764165490081,5.18824403,2936.6,2936.5,1.88167435]
[1764165490650,5.59374803,2936.6,2936.5,1.5904814]
[1764165491241,5.59374803,2936.6,2936.5,0.70545561]
[1764165491442,21.34938503,2936.6,2936.5,1.5915112]
[1764165491730,17.53739103,2936.6,2936.5,0.70545561]
[1764165492605,0.0994,2936.3,2936.2,0.88605559]
[1764165492929,0.5607,2936.3,2936.2,0.88605559]
[1764165493137,0.5607,2936.3,2936.2,1.17621874]
[1764165493307,0.6438,2936.3,2936.2,1.17621874]
[1764165493835,1.049304,2936.3,2936.2,1.17621874]
[1764165494038,2.04258486,2936.3,2936.2,1.17621874]
[1764165494334,2.04258486,2936.3,2936.1,1.76485466]
[1764165494335,1.94318486,2936.3,2936.1,1.76485466]
[1764165494530,3.95016255,2936.2,2936.0,1.18853525]
[1764165494702,4.59265666,2936.2,2936.0,1.18853525]
[1764165494902,0.80869411,2936.1,2936.0,1.18853525]
[1764165495102,1.26619411,2936.1,2936.0,1.76585466]
[1764165495398,1.68092977,2936.1,2936.0,0.001]
[1764165496817,5.08680831,2936.1,2936.0,0.001]
[1764165497244,5.08680831,2936.1,2936.0,1.76585466]
[1764165497534,0.31533566,2936.1,2936.0,1.24368415]
[1764165497737,0.31533566,2936.1,2936.0,0.9319]
[1764165498114,0.31533566,2936.1,2936.0,1.24455769]
[1764165498628,0.31453566,2936.1,2936.0,1.24455769]
[1764165498828,0.31453566,2936.1,2936.0,0.79345769]
[1764165499046,0.31453566,2936.1,2936.0,1.24455769]
[1764165499546,0.31453566,2936.1,2936.0,0.79345769]
[1764165499917,0.76793566,2936.1,2936.0,0.31265769]
[1764165500128,0.31453566,2936.1,2936.0,2.59557281]
[1764165500338,0.31453566,2936.1,2936.0,3.04667281]
[1764165500547,0.31453566,2936.1,2936.0,1.24455769]
[1764165500728,0.31453566,2936.1,2936.0,0.4808]
[1764165501530,0.31453566,2936.1,2935.8,0.001]
[1764165501728,3.40565287,2936.3,2935.8,0.001]
[1764165501729,3.40582732,2936.2,2935.8,0.001]
[1764165501934,6.81165464,2936.2,2935.8,0.001]
[1764165502239,1.18689411,2936.1,2935.8,0.001]
[1764165502448,0.68114802,2936.2,2935.8,0.4521]
[1764165502616,0.72559411,2936.2,2935.8,0.4521]
[1764165502944,0.72559411,2936.1,2935.8,0.001]
[1764165503240,0.0994,2936.3,2935.8,0.001]
[1764165503544,0.53433485,2937.0,2936.2,0.6624]
[1764165503746,8.227656,2937.4,2936.4,0.4808]
[1764165503936,0.72559411,2937.1,2936.4,0.4808]
[1764165504131,0.82552827,2937.1,2936.4,0.4808]
[1764165504648,0.72559411,2937.1,2936.5,0.4511]
[1764165504845,3.40460302,2937.2,2936.5,0.4511]
[1764165505208,0.72559411,2937.1,2936.5,3.85651414]
[1764165505408,0.72559411,2937.3,2936.5,1.17731592]
[1764165505621,8.15791048,2937.0,2936.3,0.4511]
[1764165506349,0.82429411,2936.9,2936.3,0.4511]
[1764165506656,0.0987,2936.9,2936.3,0.4511]
[1764165506952,3.40506673,2936.8,2936.3,0.4511]
[1764165507158,3.40506673,2936.8,2936.2,0.1816]
[1764165507159,0.72559411,2936.8,2936.2,0.1816]
[1764165507541,0.72559411,2936.8,2936.2,0.6327]
[1764165508248,0.82552827,2936.8,2936.2,0.6327]
[1764165508760,1.59894131,2936.8,2936.2,0.1816]
[1764165508949,6.91029952,2936.7,2936.2,0.1816]
[1764165509150,3.40518268,2936.7,2936.2,0.1816]
[1764165509658,3.40518268,2936.7,2936.2,0.6327]
[1764165509864,8.663586,2937.3,2936.6,0.4808]
[1764165510029,8.663586,2937.3,2936.3,0.4511]
[1764165510227,0.002,2937.6,2936.3,0.4511]
[1764165510228,0.002,2937.6,2937.2,0.6624]
[1764165510432,0.002,2937.6,2937.3,0.9319]
[1764165510646,0.31860987,2937.5,2937.3,0.9319]
[1764165510841,0.31860987,2937.5,2937.2,0.1816]
[1764165510842,0.31860987,2937.4,2937.2,0.1816]
[1764165511054,0.31860987,2937.3,2937.2,0.1816]
[1764165511529,0.31860987,2937.3,2937.2,1.1135]
[1764165513171,0.31860987,2937.3,2937.2,0.6624]
[1764165513371,0.31860987,2937.3,2936.2,0.1816]
[1764165513372,0.72559411,2937.2,2936.2,0.1816]
[1764165513559,0.72559411,2937.2,2936.4,0.4511]
[1764165513560,0.32320987,2937.1,2936.4,0.4511]
[1764165513760,0.31860987,2937.0,2936.4,0.4511]
[1764165514068,0.31860987,2936.9,2936.4,0.4511]
[1764165514394,0.31860987,2936.8,2936.2,0.1816]
[1764165514531,0.31860987,2936.7,2936.1,0.4511]
[1764165514737,8.47652035,2936.6,2935.8,0.4521]
[1764165514946,6.91099532,2936.4,2935.8,0.4521]
[1764165515152,0.31860987,2936.3,2935.8,0.4521]
[1764165515346,0.31860987,2936.2,2935.8,0.83795004]
[1764165515548,0.31860987,2936.1,2935.9,0.4511]
[1764165515750,0.31860987,2936.0,2935.9,0.4511]
[1764165515964,0.31860987,2936.0,2935.9,0.9319]
[1764165517143,0.31860987,2936.0,2935.9,0.4808]
[1764165518449,0.1984,2936.9,2935.9,0.9319]
[1764165518648,0.29833416,2936.9,2936.0,0.43391266]
[1764165518849,0.29833416,2936.9,2936.1,0.1816]
[1764165519050,0.72559411,2936.8,2936.1,0.1816]
[1764165519254,0.29833416,2936.9,2936.1,0.6327]
[1764165519569,0.72559411,2936.8,2936.1,0.6327]
[1764165520685,0.72559411,2936.8,2936.2,0.40386898]
[1764165521173,4.13073452,2936.8,2936.1,0.6327]
[1764165522252,4.13073452,2936.8,2936.1,0.1816]
[1764165522451,4.13073452,2936.8,2936.1,0.6327]
[1764165522668,7.63580909,2936.8,2936.1,0.1816]
[1764165523280,7.63580909,2936.8,2936.1,0.6327]
[1764165523579,3.70334437,2936.9,2936.1,0.6327]
[1764165523877,7.10835458,2936.9,2936.1,0.6327]
[1764165524078,7.10835458,2936.9,2936.1,1.41845912]
[1764165525474,3.40518268,2936.7,2936.1,1.41845912]
[1764165525843,6.81036536,2936.7,2936.1,1.41845912]
[1764165526067,7.26156536,2936.7,2936.1,0.1816]
[1764165526342,7.26156536,2936.7,2935.9,3.8188]
[1764165526343,0.09993416,2936.5,2935.9,3.8188]
[1764165526849,0.55113416,2936.6,2935.9,3.8188]
[1764165527157,1.27672827,2936.6,2935.9,3.8188]
[1764165527361,3.4054146,2936.5,2935.9,3.8188]
[1764165528068,6.8108292,2936.5,2935.9,3.8188]
[1764165528277,8.0981597,2936.5,2935.9,3.8188]
[1764165529252,7.99822554,2936.5,2935.9,3.8188]
[1764165529653,8.0981597,2936.5,2935.9,3.8188]
[1764165530202,7.99822554,2936.5,2935.9,3.8188]
[1764165530401,0.3145,2936.0,2935.9,3.8188]
[1764165530691,0.63307206,2936.0,2935.9,3.8188]
[1764165531595,0.63308735,2936.0,2935.9,3.8188]
[1764165531884,4.0390819,2936.0,2935.9,3.8188]
[1764165532109,0.31858735,2936.0,2935.9,4.2773]
[1764165532891,0.63308735,2936.0,2935.9,3.8188]
[1764165533181,0.63312306,2936.0,2935.9,3.8188]
[1764165533758,4.03911761,2936.0,2935.9,3.8188]
[1764165533958,0.63312306,2936.0,2935.9,3.8188]
[1764165534160,4.03911761,2936.0,2935.9,3.8188]
[1764165534453,0.63312306,2936.0,2935.9,3.8198]
[1764165534658,0.31862306,2936.0,2935.9,4.2783]
[1764165535582,0.31862306,2936.0,2935.9,4.7577]
[1764165535788,0.31862306,2936.0,2935.9,4.2783]
[1764165535950,3.72461761,2936.0,2935.9,4.2783]
[1764165536294,0.31862306,2936.0,2935.9,4.2783]
[1764165536860,0.31862306,2936.0,2935.9,4.7577]
[1764165537193,0.31862306,2936.0,2935.9,3.8198]
[1764165537993,0.31862306,2936.0,2935.9,4.2783]
[1764165538497,0.63302306,2936.0,2935.9,3.8198]
[1764165538804,0.31862306,2936.0,2935.9,4.2783]
[1764165541174,4.03901761,2936.0,2935.9,3.8198]
[1764165541375,4.48881761,2936.0,2935.9,3.8198]
[1764165541779,0.63302306,2936.0,2935.9,3.8198]
[1764165542004,4.03901761,2936.0,2935.9,3.8198]
[1764165542324,4.48881761,2936.0,2935.9,3.8198]
[1764165542521,14.2617272,2936.0,2935.9,0.001]
[1764165542728,22.9753772,2936.0,2935.9,0.001]
[1764165543123,23.3808812,2936.0,2935.9,0.001]
[1764165543279,1.13109811,2935.9,2935.8,0.001]
[1764165543479,30.58349956,2935.9,2935.8,0.001]
[1764165543700,33.93319055,2935.9,2935.8,0.001]
[1764165544292,34.76404711,2935.9,2935.8,0.001]
[1764165544720,40.97223173,2935.9,2935.8,0.001]
[1764165545377,9.65712427,2935.6,2935.5,0.001]
[1764165545573,9.24271756,2935.6,2935.5,0.001]
[1764165545789,10.7988849,2935.6,2935.5,0.001]
[1764165546222,11.2043889,2935.6,2935.5,0.001]
[1764165546425,36.86226154,2935.6,2935.5,0.001]
[1764165546582,23.85248154,2935.6,2935.5,0.001]
[1764165547209,1.23103227,2935.3,2935.2,0.001]
[1764165547508,12.65716433,2935.3,2935.2,0.001]
[1764165547728,9.34184733,2935.3,2935.2,0.001]
[1764165548095,9.34104733,2935.3,2935.2,0.001]
[1764165548286,13.75826612,2935.3,2935.2,0.001]
[1764165548610,11.55002868,2935.3,2935.2,0.001]
[1764165548991,11.64916284,2935.3,2935.2,0.001]
[1764165549414,26.79189784,2935.3,2935.2,0.001]
[1764165549924,23.87764784,2935.3,2935.2,0.001]
[1764165550340,0.43454847,2936.0,2935.2,1.34001269]
[1764165550478,4.20144027,2937.4,2935.2,1.34001269]
[1764165550479,9.81473432,2939.1,2936.2,2.32324689]
[1764165550816,0.53415077,2939.2,2938.1,0.405504]
[1764165551002,0.197,2939.9,2938.4,16.282786]
[1764165551187,0.197,2939.9,2939.2,0.89488417]
[1764165551387,0.4616,2940.5,2938.9,0.89488417]
[1764165551597,2.968234,2940.7,2939.1,8.981611]
[1764165551800,9.00404062,2940.8,2939.3,9.87649517]
[1764165551801,1.19722746,2940.6,2939.3,9.87649517]
[1764165552008,1.19722746,2940.6,2939.2,2.96584382]
[1764165552009,1.19722746,2940.6,2939.4,1.60868518]
[1764165552182,3.980689,2940.8,2939.7,0.89488417]
[1764165552377,14.329116,2941.4,2939.9,4.29636041]
[1764165552677,10.88109,2941.4,2940.0,1.60868518]
[1764165552882,10.88109,2941.4,2940.1,0.71380101]
[1764165553109,1.49393169,2941.3,2940.2,0.71380101]
[1764165553310,7.4578537,2941.5,2940.3,0.71380101]
[1764165553311,15.078797,2941.4,2940.3,0.71380101]
[1764165553511,15.078797,2941.4,2940.4,0.71380101]
[1764165553715,13.219638,2941.4,2940.5,0.7087671]
[1764165553888,13.219638,2941.4,2940.6,0.70868931]
[1764165554092,13.219638,2941.4,2940.3,0.89488417]
[1764165554288,4.05822685,2941.5,2940.4,0.708657]
[1764165554289,1.72778649,2941.3,2940.4,0.708657]
[1764165554507,14.331638,2941.4,2940.5,0.708657]
[1764165554813,20.441755,2941.2,2940.1,0.89488417]
[1764165555117,13.329711,2941.2,2940.2,0.70712399]
[1764165555316,9.01124062,2941.8,2940.6,0.89488417]
[1764165555608,9.01124062,2941.8,2940.3,0.70712399]
[1764165555609,3.1022,2941.7,2940.7,0.70712399]
[1764165555811,1.22134406,2941.6,2940.3,0.89488417]
[1764165555992,1.22134406,2941.6,2940.4,0.70536969]
[1764165556191,1.22134406,2941.6,2940.5,0.70536969]
[1764165556394,1.22134406,2941.6,2940.6,0.70536969]
[1764165556590,1.22134406,2941.6,2940.7,0.70536969]
[1764165556909,0.97775467,2941.5,2940.3,0.89488417]
[1764165557216,1.07775467,2941.5,2940.4,0.70419974]
[1764165557390,0.4688,2941.4,2940.5,0.70419974]
[1764165557710,8.116506,2941.3,2940.6,0.70419974]
[1764165557909,0.6395,2940.7,2940.2,0.89488417]
[1764165558122,0.6395,2940.7,2940.3,0.70340855]
[1764165558301,0.6395,2940.7,2939.7,1.19301319]
[1764165558302,0.6395,2940.7,2939.8,0.89488417]
[1764165558482,0.6395,2940.7,2939.9,0.70286101]
[1764165558688,7.90942259,2940.7,2940.0,0.70286101]
[1764165558909,7.90942259,2940.7,2940.1,0.70286101]
[1764165558910,0.80094226,2940.6,2940.1,0.70286101]
[1764165559084,1.1083,2940.7,2939.8,0.89488417]
[1764165559085,4.50888513,2940.7,2939.8,0.89488417]
[1764165559286,0.1822,2940.7,2939.9,0.70287451]
[1764165559485,3.58278108,2940.7,2940.0,0.70287451]
[1764165559690,3.58278108,2940.7,2940.1,0.70287451]
[1764165560012,4.05158108,2940.7,2939.7,0.89488417]
[1764165560194,0.40515811,2940.6,2939.8,0.70237523]
[1764165560389,1.13075222,2940.6,2939.9,0.70237523]
[1764165560585,0.72559411,2940.5,2940.0,0.70237523]
[1764165560781,0.72559411,2940.5,2939.7,0.89488417]
[1764165560982,0.72559411,2940.5,2939.8,0.70192756]
[1764165561212,0.72559411,2940.5,2939.9,0.70192756]
[1764165561417,0.72559411,2940.5,2940.0,0.70192756]
[1764165561713,0.72559411,2940.5,2940.1,0.70192756]
[1764165561915,0.72559411,2940.5,2939.7,0.89488417]
[1764165562112,0.72559411,2940.5,2939.8,0.70161223]
[1764165562302,0.72559411,2940.5,2939.9,0.70161223]
[1764165562503,0.72559411,2940.4,2940.0,0.70161223]
[1764165562705,0.72559411,2940.4,2939.6,4.29665794]
[1764165563020,0.72559411,2940.4,2939.7,0.70139762]
[1764165563227,0.72559411,2940.4,2939.8,0.70139762]
[1764165563516,0.72559411,2940.4,2939.9,0.70139762]
[1764165563726,0.72559411,2940.4,2939.6,0.89488417]
[1764165563727,0.72559411,2940.4,2940.0,0.70139762]
[1764165563884,0.72559411,2940.4,2939.6,0.89488417]
[1764165564091,0.72559411,2940.4,2939.7,0.70100916]
[1764165564289,1.51882771,2940.4,2939.8,0.70100916]
[1764165564491,1.51882771,2940.4,2939.6,0.89488417]
[1764165564492,1.98762771,2940.4,2939.9,0.70100916]
[1764165564722,3.4010135,2940.3,2940.0,0.70100916]
[1764165564918,0.72559411,2940.2,2939.6,0.89488417]
[1764165565118,1.19439411,2940.2,2939.3,0.89488417]
[1764165565318,1.60854346,2940.1,2938.9,0.89488417]
[1764165565621,1.60854346,2940.1,2939.0,0.7011552]
[1764165565823,0.5688,2940.0,2939.1,0.7011552]
[1764165566001,1.13974346,2940.1,2939.2,0.7011552]
[1764165566206,1.13974346,2940.1,2938.9,6.80525201]
[1764165566406,1.13974346,2940.1,2939.0,0.77001362]
[1764165566608,0.72559411,2939.9,2939.1,3.40240209]
[1764165567008,0.90679411,2939.9,2939.1,3.40240209]
[1764165567326,0.90679411,2939.9,2939.0,4.17247957]
[1764165567707,0.90679411,2939.9,2939.0,4.17249338]
[1764165568028,0.90679411,2939.9,2939.1,0.50673775]
[1764165568597,0.1822,2939.9,2939.2,3.40228633]
[1764165569026,3.58372597,2939.9,2939.1,3.9091045]
[1764165569334,3.58372597,2939.9,2939.2,3.8188]
[1764165569711,7.45405194,2939.9,2939.2,3.8188]
[1764165569926,0.72559411,2940.2,2939.2,4.20068]
[1764165570225,0.4688,2940.1,2939.2,3.8188]
[1764165570403,0.5688,2940.1,2939.2,3.8188]
[1764165570603,0.1,2940.0,2939.2,3.8188]
[1764165570917,0.4688,2940.1,2939.2,3.8188]
[1764165570918,6.80295248,2939.9,2939.2,3.8188]
[1764165571129,6.98515248,2939.9,2939.2,3.8188]
[1764165571434,3.58367624,2939.9,2939.2,3.8188]
[1764165571616,6.98515248,2939.9,2939.2,3.8188]
[1764165572328,3.58367624,2939.9,2939.2,3.8188]
[1764165572696,6.98515248,2939.9,2939.2,3.8188]
[1764165572902,3.58287624,2939.9,2939.2,3.8188]
[1764165573333,0.72559411,2940.2,2939.2,7.94320045]
[1764165573736,0.82559411,2940.2,2939.2,4.54091416]
[1764165574035,0.72559411,2940.2,2939.2,7.94316151]
[1764165574211,0.4688,2940.1,2939.2,7.94316151]
[1764165574413,0.4688,2940.1,2939.3,3.8188]
[1764165574733,3.40136054,2940.0,2939.3,3.8188]
[1764165574904,6.80272108,2940.0,2939.3,3.8188]
[1764165575229,0.1822,2939.9,2939.3,3.8188]
[1764165575430,0.651,2939.9,2939.3,3.8188]
[1764165576142,0.4688,2939.8,2939.3,3.8188]
[1764165577206,3.40170765,2939.7,2939.3,3.8188]
[1764165577407,6.8034153,2939.7,2939.3,4.71368417]
[1764165577613,0.4688,2939.6,2939.3,4.71368417]
[1764165577926,0.80964211,2940.1,2939.3,4.71368417]
[1764165577927,0.4688,2940.3,2939.3,2.13055391]